bitfinex/quotes_ETHUSD_20241004
["timestamp","ask_amount","ask_price","bid_price","bid_amount"]
[1728083149041,0.12986849,2422.8,2422.7,5.63743255]
[1728083149226,0.12986849,2422.8,2422.7,7.39875481]
[1728083149410,4.12672,2423.3,2422.8,4.12743]
[1728083149609,4.12672,2423.3,2423.0,1.41593455]
[1728083150229,8.25344,2423.3,2423.0,1.41593455]
[1728083150616,8.25341,2423.3,2423.0,1.41593455]
[1728083150838,9.158001,2423.3,2423.0,1.41593455]
[1728083151332,9.158021,2423.3,2423.0,1.41593455]
[1728083151523,9.80509866,2423.3,2423.0,1.41593455]
[1728083152911,5.67835866,2423.3,2423.0,1.41593455]
[1728083153112,0.64707766,2423.3,2423.0,1.41593455]
[1728083153308,0.64707766,2423.3,2423.2,1.41593455]
[1728083159255,4.12618,2423.6,2423.2,1.41593455]
[1728083160855,3.0,2423.6,2423.2,1.41593455]
[1728083162008,0.12556662,2423.5,2423.2,1.41593455]
[1728083163493,0.12556662,2423.5,2423.3,4.12657]
[1728083164137,0.12556662,2423.5,2423.2,1.41593455]
[1728083164341,0.12556662,2423.5,2423.2,5.54269455]
[1728083164881,0.12556662,2423.5,2423.4,1.41593455]
[1728083165076,0.12556662,2423.5,2423.2,1.41593455]
[1728083168584,0.12556662,2423.5,2423.2,5.54266455]
[1728083168783,0.12556662,2423.5,2423.4,1.41593455]
[1728083168983,4.12575,2423.8,2423.4,5.54236455]
[1728083169144,0.55475491,2423.7,2423.6,1.41593455]
[1728083170347,1.42179907,2423.9,2423.6,1.41593455]
[1728083170546,1.42179907,2423.9,2423.8,1.41593455]
[1728083170547,0.64699907,2423.9,2423.8,1.41593455]
[1728083176254,4.12519,2424.2,2423.8,1.41593455]
[1728083176552,4.77202841,2424.2,2423.8,1.41593455]
[1728083176959,0.12581038,2424.1,2423.8,1.41593455]
[1728083177160,0.12581038,2424.1,2424.0,1.41593455]
[1728083177385,0.12581038,2424.1,2424.0,2.20833455]
[1728083177584,0.12581038,2424.1,2424.0,6.33374455]
[1728083177952,0.7816,2424.5,2424.1,4.12523]
[1728083178207,0.7816,2424.5,2424.3,1.41593455]
[1728083178409,0.7816,2424.5,2424.1,4.12523]
[1728083178624,0.7816,2424.5,2424.0,0.7924]
[1728083178625,4.12541,2424.0,2423.6,7.3]
[1728083178926,4.12541,2424.0,2423.7,4.0]
[1728083178927,0.7816,2423.8,2423.7,4.0]
[1728083179083,0.7816,2423.8,2423.5,1.41593455]
[1728083179596,4.12618,2423.6,2423.2,0.7924]
[1728083179933,4.12618,2423.6,2423.1,5.54278455]
[1728083180225,4.12618,2423.6,2423.2,4.0]
[1728083180388,4.12626,2423.5,2423.2,4.0]
[1728083180792,4.12626,2423.5,2423.3,1.41593455]
[1728083180983,0.7816,2423.8,2423.2,4.0]
[1728083180984,4.12643,2423.4,2423.2,4.0]
[1728083181197,4.12643,2423.4,2423.1,1.41593455]
[1728083181997,4.1262,2423.6,2423.1,1.41593455]
[1728083182196,4.12627,2423.5,2423.1,1.41593455]
[1728083182523,4.12661,2423.3,2423.0,0.7924]
[1728083182695,4.12684,2423.2,2422.9,1.41593455]
[1728083182899,4.12684,2423.2,2423.0,4.0]
[1728083183101,4.12661,2423.3,2423.0,4.0]
[1728083183933,4.12661,2423.3,2422.9,1.41593455]
[1728083184295,4.12661,2423.3,2422.9,5.54316455]
[1728083186314,3.7816,2423.4,2423.1,1.41593455]
[1728083186515,0.7816,2423.4,2423.3,1.41593455]
[1728083186831,4.12636,2423.5,2423.3,1.41593455]
[1728083187029,8.25277,2423.5,2423.3,1.41593455]
[1728083187228,4.12636,2423.5,2423.3,1.41593455]
[1728083187748,5.078838,2423.5,2423.3,1.41593455]
[1728083189456,0.7816,2423.6,2423.3,1.41593455]
[1728083189764,4.12601,2423.7,2423.3,1.41593455]
[1728083191956,0.12555211,2423.6,2423.3,1.41593455]
[1728083192747,4.25166211,2423.6,2423.3,1.41593455]
[1728083192954,5.46763932,2423.6,2423.3,1.41593455]
[1728083193957,5.46763932,2423.6,2423.1,6.33514455]
[1728083194163,5.34208721,2423.6,2423.1,10.46200455]
[1728083194488,5.34208721,2423.6,2423.1,6.33514455]
[1728083194798,1.21597721,2423.6,2423.2,4.12672]
[1728083195149,1.21597721,2423.6,2423.1,7.20087732]
[1728083195469,5.34212721,2423.6,2423.1,10.46200455]
[1728083195666,5.34212721,2423.6,2423.1,7.20087732]
[1728083196387,4.90858,2423.4,2423.0,0.86573277]
[1728083196946,4.90858,2423.4,2423.1,1.41593455]
[1728083198661,0.7821,2423.4,2423.1,1.41593455]
[1728083198962,0.12552453,2423.3,2423.1,1.41593455]
[1728083199665,4.25213453,2423.3,2423.0,0.86573277]
[1728083200108,4.25213453,2423.3,2422.9,3.04836732]
[1728083200263,4.25213453,2423.3,2423.0,4.0]
[1728083200600,4.12693,2423.2,2423.0,4.86573277]
[1728083200810,4.90904,2423.1,2423.0,4.0]
[1728083200962,4.90904,2423.1,2422.7,0.95961077]
[1728083200963,5.03446095,2423.1,2422.7,0.95961077]
[1728083201206,4.12725,2423.0,2422.7,0.95961077]
[1728083201410,4.12731,2422.9,2422.7,0.093878]
[1728083201611,4.25260504,2422.9,2422.7,0.093878]
[1728083201821,4.25260504,2422.9,2422.7,1.50981255]
[1728083202034,0.12529504,2422.9,2422.7,1.50981255]
[1728083202674,4.90905,2423.1,2422.7,1.50981255]
[1728083203156,0.12522142,2423.0,2422.7,1.50981255]
[1728083204336,4.90905,2423.1,2422.7,1.50981255]
[1728083204644,0.12518634,2422.9,2422.7,1.50981255]
[1728083204876,4.90905,2423.1,2422.7,1.50981255]
[1728083205023,0.12515976,2422.8,2422.7,1.50981255]
[1728083205460,4.12721,2423.0,2422.7,1.50981255]
[1728083205764,5.030836,2423.0,2422.7,1.50981255]
[1728083205933,0.12521185,2422.9,2422.7,1.50981255]
[1728083210569,3.7938,2423.4,2423.0,4.12709]
[1728083210724,7.92039,2423.4,2423.0,1.41593455]
[1728083211064,0.12524343,2423.3,2423.0,1.41593455]
[1728083211438,0.12524343,2423.3,2423.2,1.41593455]
[1728083211838,4.91994,2423.6,2423.2,1.41593455]
[1728083212028,0.12527301,2423.3,2423.2,1.41593455]
[1728083212226,4.91994,2423.6,2423.2,1.41593455]
[1728083212449,0.12524152,2423.3,2423.2,1.41593455]
[1728083212673,4.91994,2423.6,2423.2,1.41593455]
[1728083213278,0.12532263,2423.5,2423.2,1.41593455]
[1728083215078,4.25168263,2423.5,2423.2,1.41593455]
[1728083215587,0.12532263,2423.5,2423.2,1.41593455]
[1728083215742,4.12643,2423.4,2423.2,1.41593455]
[1728083215944,4.25171756,2423.4,2423.2,1.41593455]
[1728083216881,0.12528756,2423.4,2423.2,1.41593455]
[1728083218471,0.12528756,2423.4,2423.0,4.12702]
[1728083218785,5.04560756,2423.4,2423.0,1.41593455]
[1728083220076,9.17213756,2423.4,2423.0,1.41593455]
[1728083220406,4.12669,2423.3,2423.0,1.41593455]
[1728083220609,4.25194249,2423.3,2423.0,1.41593455]
[1728083221604,0.7938,2422.9,2422.7,0.76672741]
[1728083221808,0.7938,2422.9,2422.7,0.093878]
[1728083222101,0.1251217,2422.8,2422.7,0.093878]
[1728083222312,0.1251217,2422.8,2422.7,1.50981255]
[1728083223694,0.7938,2422.9,2422.7,1.50981255]
[1728083224004,0.12505476,2422.8,2422.7,1.50981255]
[1728083224424,0.7938,2422.9,2422.7,1.50981255]
[1728083225073,0.12503806,2422.8,2422.7,1.50981255]
[1728083225486,0.7938,2422.9,2422.7,1.50981255]
[1728083225884,0.1244214,2422.8,2422.7,1.50981255]
[1728083226216,4.12695,2423.1,2422.7,1.50981255]
[1728083226520,9.04758,2423.2,2423.0,1.41593455]
[1728083226811,5.825448,2423.2,2423.0,1.41593455]
[1728083226982,4.12694,2423.1,2423.0,1.41593455]
[1728083230087,4.12694,2423.1,2422.8,1.41593455]
[1728083230282,4.12727,2423.0,2422.8,1.41593455]
[1728083232899,4.12728,2422.9,2422.8,1.41593455]
[1728083233476,4.12728,2422.9,2422.7,0.093878]
[1728083233477,4.91055,2422.8,2422.7,0.093878]
[1728083233741,4.91055,2422.8,2421.4,0.64488576]
[1728083233742,3.0,2422.2,2421.4,0.64488576]
[1728083233881,3.0,2422.7,2421.1,2.28166732]
[1728083233882,3.0,2421.7,2421.1,2.28166732]
[1728083234084,3.0,2421.7,2421.0,0.86573277]
[1728083234085,0.7831,2421.4,2421.0,0.86573277]
[1728083234284,4.13014,2421.3,2421.0,0.86573277]
[1728083234519,4.13035,2421.1,2420.9,1.84740042]
[1728083234901,4.13052,2421.0,2420.9,0.43146587]
[1728083235089,4.13052,2421.0,2420.9,0.775631]
[1728083235398,9.32955455,2421.0,2420.9,0.34416513]
[1728083235584,8.46362,2421.0,2420.9,0.34416513]
[1728083236180,4.8,2421.0,2420.3,0.121076]
[1728083236400,4.8,2421.0,2419.3,1.9694155]
[1728083236401,0.7831,2420.4,2419.7,3.07438248]
[1728083236630,4.13241,2419.9,2419.3,1.29859915]
[1728083236783,1.3331,2420.3,2419.3,1.29859915]
[1728083236784,5.328931,2419.8,2419.3,1.29859915]
[1728083236991,4.13292,2419.6,2419.3,1.29859915]
[1728083237188,3.7831,2419.5,2419.3,1.29859915]
[1728083237497,0.1099675,2419.5,2419.3,4.37298163]
[1728083237810,7.13276,2419.7,2419.3,1.29859915]
[1728083237989,0.10955338,2419.5,2419.3,1.29859915]
[1728083238189,3.0,2419.7,2419.3,1.29859915]
[1728083238427,0.10952074,2419.5,2419.4,4.99898277]
[1728083238591,0.7831,2419.8,2419.4,4.99898277]
[1728083238850,3.0,2420.1,2419.7,3.07438248]
[1728083239075,3.0,2420.1,2419.6,4.1328]
[1728083239680,0.7831,2420.2,2419.7,7.20701248]
[1728083240185,0.7831,2420.2,2419.8,4.13245]
[1728083240485,0.7831,2420.2,2419.9,7.20667248]
[1728083240655,1.25938116,2420.5,2419.9,7.20667248]
[1728083240859,0.7831,2420.5,2420.3,3.07438248]
[1728083241255,4.13093,2420.8,2420.3,3.07438248]
[1728083241478,4.91403,2420.8,2420.3,3.07438248]
[1728083242266,3.0,2420.7,2420.3,3.07438248]
[1728083242865,0.7831,2420.8,2420.4,4.13152]
[1728083243186,2.42460833,2420.8,2420.3,7.20607248]
[1728083243487,1.71064924,2420.8,2420.3,7.20607248]
[1728083244392,5.84152924,2420.8,2420.3,7.20607248]
[1728083244850,5.84152924,2420.8,2420.1,4.13195]
[1728083244851,4.1311,2420.7,2420.1,4.13195]
[1728083245070,5.01525292,2420.7,2420.1,4.13195]
[1728083245977,0.88415292,2420.7,2420.2,4.13187]
[1728083246402,5.84152924,2420.8,2420.2,4.13187]
[1728083248503,5.84152924,2420.8,2420.1,4.13195]
[1728083248806,5.84152924,2420.8,2420.2,4.13188]
[1728083249208,4.13104,2420.7,2420.1,4.13193]
[1728083249370,9.97255924,2420.8,2420.2,4.13188]
[1728083249573,1.29725592,2420.7,2420.2,4.13188]
[1728083252007,0.10998732,2420.6,2420.1,4.13189]
[1728083252219,0.10998732,2420.6,2420.3,4.13171]
[1728083252372,5.84152924,2420.8,2420.3,4.13171]
[1728083252573,0.10995217,2420.5,2420.3,4.13171]
[1728083252818,5.84152924,2420.8,2420.3,4.13171]
[1728083253106,0.10991702,2420.4,2420.3,8.26333]
[1728083253421,0.10990578,2420.4,2420.3,4.13162]
[1728083253754,5.84151924,2420.8,2420.3,4.13162]
[1728083253918,0.10990578,2420.4,2420.3,4.13162]
[1728083254413,0.10990859,2420.4,2420.1,4.13197]
[1728083254575,4.1312,2420.7,2420.1,4.13197]
[1728083254772,0.58418492,2420.6,2420.3,4.13169]
[1728083254970,3.0,2420.7,2420.3,4.13169]
[1728083255908,4.71064924,2420.8,2420.3,4.13169]
[1728083256211,4.71064924,2420.8,2420.3,4.13163]
[1728083256417,4.71064924,2420.8,2420.4,4.13154]
[1728083256907,4.71064924,2420.8,2420.3,4.13162]
[1728083257219,3.88414992,2420.7,2420.4,4.13153]
[1728083257399,0.88414992,2420.7,2420.3,8.26324]
[1728083257623,0.88414992,2420.7,2420.3,4.13162]
[1728083258801,0.7831,2420.8,2420.5,4.13128]
[1728083259803,0.7831,2420.8,2420.5,8.26256]
[1728083260242,0.7831,2420.8,2420.5,4.13128]
[1728083261652,0.7831,2420.8,2420.5,8.26256]
[1728083261808,0.7831,2420.8,2420.6,4.13117]
[1728083263512,3.64785333,2421.0,2420.5,4.13128]
[1728083263817,0.64785333,2421.0,2420.7,4.13102]
[1728083264205,0.64785333,2421.0,2420.8,0.67235878]
[1728083264409,0.64785333,2421.0,2420.7,4.13102]
[1728083264748,0.64785333,2421.0,2420.5,4.7753374]
[1728083264749,3.64785333,2421.0,2420.6,4.1312]
[1728083264919,3.64785333,2421.0,2420.5,4.7753374]
[1728083264920,0.773,2420.9,2420.5,0.6440574]
[1728083265134,4.40482532,2420.8,2420.2,4.13172]
[1728083265342,5.53569532,2420.8,2420.3,4.13157]
[1728083265859,5.53569532,2420.8,2420.2,4.7757774]
[1728083265860,1.40482532,2420.8,2420.4,4.13146]
[1728083266153,4.90387,2420.8,2420.3,0.6440574]
[1728083266354,6.17210433,2420.8,2420.2,7.85015988]
[1728083266572,6.17210433,2420.8,2420.3,4.1317]
[1728083266871,0.11010112,2420.7,2420.3,4.1317]
[1728083267022,6.17210433,2420.8,2420.3,4.1317]
[1728083267217,0.11006598,2420.6,2420.3,4.77672183]
[1728083267423,6.17210433,2420.8,2420.3,4.77672183]
[1728083267664,0.11003083,2420.5,2420.3,4.77672183]
[1728083267835,6.17210433,2420.8,2420.3,4.77672183]
[1728083268045,0.10999568,2420.4,2420.3,4.77672183]
[1728083268252,6.17210433,2420.8,2420.3,4.1317]
[1728083268548,6.17210433,2420.8,2420.4,0.64559553]
[1728083268748,0.91721043,2420.7,2420.4,0.64559553]
[1728083270565,0.91721043,2420.7,2420.3,4.1317]
[1728083270728,0.91721043,2420.7,2420.4,0.64612515]
[1728083270929,0.91721043,2420.7,2420.3,4.1317]
[1728083271128,0.91721043,2420.7,2420.4,0.64612427]
[1728083272553,0.91721043,2420.7,2420.4,4.77764427]
[1728083272751,2.04123433,2420.8,2420.4,4.77756427]
[1728083273072,2.04123433,2420.8,2420.5,0.64612427]
[1728083273224,2.04123433,2420.8,2420.4,4.77756427]
[1728083273861,2.04123433,2420.8,2420.4,4.13144]
[1728083274070,2.04123433,2420.8,2420.4,4.77756427]
[1728083274237,0.91720043,2420.7,2420.4,4.77756427]
[1728083275572,0.91720043,2420.7,2420.4,4.13144]
[1728083276152,0.91720043,2420.7,2420.3,0.64612427]
[1728083276419,4.1313,2420.6,2420.2,0.64612427]
[1728083277402,4.1313,2420.6,2420.2,0.64615993]
[1728083277612,0.50485004,2420.5,2420.2,0.64615993]
[1728083278771,0.50485004,2420.5,2420.1,4.77806993]
[1728083279408,0.50485004,2420.5,2420.2,0.86573277]
[1728083280109,0.50485004,2420.5,2420.1,4.99764277]
[1728083280311,0.50485004,2420.5,2420.2,0.86573277]
[1728083281971,0.10981882,2420.4,2420.2,0.86573277]
[1728083282584,4.77911258,2420.6,2420.2,0.86573277]
[1728083282915,5.83914288,2420.6,2420.2,4.99761277]
[1728083283208,0.10985398,2420.5,2420.2,4.99761277]
[1728083283569,0.10985398,2420.5,2420.4,4.13154]
[1728083283959,0.10985398,2420.5,2420.4,4.99727277]
[1728083285913,0.10985398,2420.5,2420.4,8.07165525]
[1728083286123,0.10985398,2420.5,2420.4,10.52418377]
[1728083286324,0.64777989,2420.9,2420.7,4.13088]
[1728083286471,0.64777989,2420.9,2420.8,4.13086]
[1728083287015,0.64057989,2420.9,2420.8,5.4332091]
[1728083287194,0.64057989,2420.9,2420.8,4.13086]
[1728083287381,0.64057989,2420.9,2420.8,7.03272484]
[1728083287581,0.63977989,2420.9,2420.8,6.59834216]
[1728083287804,0.63257989,2420.9,2420.8,6.59834216]
[1728083288438,0.63177989,2420.9,2420.8,6.59834216]
[1728083288594,0.62537989,2420.9,2420.8,6.59834216]
[1728083289208,0.62457989,2420.9,2420.8,6.59834216]
[1728083289406,0.62457989,2420.9,2420.8,5.73053415]
[1728083289634,0.61977989,2420.9,2420.8,5.73053415]
[1728083289842,0.61897989,2420.9,2420.8,5.73053415]
[1728083290038,0.61817989,2420.9,2420.8,5.73053415]
[1728083290335,0.61657989,2420.9,2420.8,5.73053415]
[1728083290533,0.61257989,2420.9,2420.8,5.73053415]
[1728083290712,0.61097989,2420.9,2420.8,5.73053415]
[1728083290920,0.61017989,2420.9,2420.8,5.73053415]
[1728083291241,0.60937989,2420.9,2420.8,5.73053415]
[1728083291612,0.60857989,2420.9,2420.8,5.73053415]
[1728083292600,0.60777989,2420.9,2420.8,5.73053415]
[1728083293623,0.60777989,2420.9,2420.7,4.13088]
[1728083294002,0.60777989,2420.9,2420.5,7.96263248]
[1728083294003,0.60777989,2420.9,2420.5,12.09388248]
[1728083294237,0.60777989,2420.9,2420.6,4.13112]
[1728083295096,0.60777989,2420.9,2420.7,4.131]
[1728083295741,0.60777989,2420.9,2420.6,4.13112]
[1728083295945,0.60777989,2420.9,2420.6,8.26224]
[1728083296808,0.11012582,2420.8,2420.7,4.13103]
[1728083302243,0.11012582,2420.8,2420.6,5.58706719]
[1728083302428,0.11012582,2420.8,2420.6,5.58705719]
[1728083302632,0.60777989,2420.9,2420.6,4.13112]
[1728083302942,0.60777989,2420.9,2420.6,8.26222]
[1728083303254,0.11013845,2420.8,2420.7,4.13103]
[1728083306564,0.11013845,2420.8,2420.7,7.20541248]
[1728083307083,0.60777989,2420.9,2420.7,7.20541248]
[1728083307374,0.60777989,2420.9,2420.8,4.93818205]
[1728083307981,0.60777989,2420.9,2420.8,5.69518205]
[1728083312081,0.71800198,2420.9,2420.8,5.69518205]
[1728083313660,0.71800198,2420.9,2420.8,7.11281205]
[1728083314068,0.60777989,2420.9,2420.8,5.69518205]
[1728083314430,4.12993,2421.4,2420.8,5.69518205]
[1728083314431,4.12993,2421.4,2420.9,4.13068]
[1728083314582,4.12993,2421.4,2421.2,1.41763]
[1728083314583,8.25986,2421.4,2421.2,1.41763]
[1728083314915,0.10671648,2421.3,2420.9,4.13061]
[1728083315204,0.10671648,2421.3,2421.2,1.41763]
[1728083316917,4.12967,2421.5,2421.2,1.41763]
[1728083317404,5.0306,2421.5,2421.2,1.41763]
[1728083317611,0.10678665,2421.4,2421.2,1.41763]
[1728083317989,4.23672665,2421.4,2421.2,1.41763]
[1728083318718,0.10678665,2421.4,2421.2,1.41763]
[1728083319576,4.23666665,2421.4,2421.2,1.41763]
[1728083320293,0.10678665,2421.4,2421.2,1.41763]
[1728083321718,3.0,2421.7,2421.3,4.13001]
[1728083321890,0.10689357,2421.6,2421.5,1.41763]
[1728083322907,3.10689357,2421.6,2421.5,1.41763]
[1728083337454,4.12994,2421.4,2421.0,0.8079]
[1728083337665,4.12994,2421.4,2421.2,1.41763]
[1728083337834,0.1069258,2421.3,2421.2,1.41763]
[1728083338027,4.12985,2421.4,2421.2,1.41763]
[1728083338343,0.1069258,2421.3,2421.2,1.41763]
[1728083338676,4.12985,2421.4,2421.2,1.41763]
[1728083338976,0.1069258,2421.3,2421.2,1.41763]
[1728083339137,4.12985,2421.4,2421.2,1.41763]
[1728083339333,0.1069258,2421.3,2421.2,1.41763]
[1728083339633,4.12985,2421.4,2421.2,1.41763]
[1728083340038,0.1069258,2421.3,2421.2,1.41763]
[1728083340352,4.12985,2421.4,2421.2,1.41763]
[1728083340525,0.1069258,2421.3,2421.2,1.41763]
[1728083340726,4.12985,2421.4,2421.2,1.41763]
[1728083341050,0.1069258,2421.3,2421.2,1.41763]
[1728083341638,4.95848,2421.5,2421.2,1.41763]
[1728083341824,4.95848,2421.5,2421.4,1.41763]
[1728083342165,4.12978,2421.5,2421.4,1.41763]
[1728083342839,3.0,2421.6,2421.4,1.41763]
[1728083343024,7.12952,2421.6,2421.4,1.41763]
[1728083344963,3.0,2421.6,2421.4,2.22553]
[1728083348660,0.10702975,2421.5,2421.4,2.22553]
[1728083351328,0.10702975,2421.5,2421.4,2.7651643]
[1728083351757,0.10702975,2421.5,2421.4,2.22553]
[1728083352762,0.10702975,2421.5,2421.4,2.76516261]
[1728083352935,0.10702975,2421.5,2421.4,2.22553]
[1728083353451,0.10702975,2421.5,2421.4,2.76516489]
[1728083353646,0.10702975,2421.5,2421.4,2.22553]
[1728083355388,0.10702975,2421.5,2421.4,2.7651619]
[1728083355792,0.10702975,2421.5,2421.4,2.22553]
[1728083357999,7.12917,2421.8,2421.4,2.76516429]
[1728083358202,0.10642209,2421.7,2421.4,2.22553]
[1728083358375,7.12917,2421.8,2421.4,2.22553]
[1728083358577,0.10642209,2421.7,2421.4,2.22553]
[1728083358761,7.12917,2421.8,2421.4,2.22553]
[1728083358957,0.10642209,2421.7,2421.4,2.22553]
[1728083359304,3.0,2421.6,2421.4,2.22553]
[1728083359478,3.10638697,2421.6,2421.4,2.22553]
[1728083361181,3.10638697,2421.6,2421.4,1.41763]
[1728083361374,4.23589697,2421.6,2421.4,1.41763]
[1728083362005,0.10638697,2421.6,2421.4,1.41763]
[1728083369613,0.10638697,2421.6,2421.3,0.86649975]
[1728083371999,0.10638697,2421.6,2421.3,4.99649975]
[1728083372822,0.10638697,2421.6,2421.4,5.54738]
[1728083373127,0.10638697,2421.6,2421.4,6.40197294]
[1728083373299,7.95769,2421.9,2421.4,7.26847269]
[1728083373500,0.10635465,2421.5,2421.4,5.54738]
[1728083373700,7.95769,2421.9,2421.4,5.54738]
[1728083373928,0.10635745,2421.5,2421.4,6.41387975]
[1728083374171,3.0,2421.7,2421.4,6.41387975]
[1728083374428,3.0,2421.7,2421.4,5.54738]
[1728083374591,0.10639257,2421.6,2421.4,5.54738]
[1728083376832,0.10639257,2421.6,2421.4,9.67713]
[1728083377044,0.10639257,2421.6,2421.5,5.78206975]
[1728083377185,4.12891,2422.0,2421.5,5.78206975]
[1728083377389,0.10647198,2421.9,2421.7,1.41763]
[1728083377723,4.23546198,2421.9,2421.7,1.41763]
[1728083377937,4.12899,2421.9,2421.7,1.41763]
[1728083378137,4.23559967,2421.8,2421.7,1.41763]
[1728083378558,0.10643967,2421.8,2421.7,1.41763]
[1728083381405,4.23559967,2421.8,2421.7,1.41763]
[1728083383012,0.10643967,2421.8,2421.7,1.41763]
[1728083383248,4.12891,2422.0,2421.7,1.41763]
[1728083383450,0.10315228,2421.8,2421.7,1.41763]
[1728083383646,4.12891,2422.0,2421.7,1.41763]
[1728083383849,4.23231228,2421.8,2421.5,1.65239975]
[1728083384010,4.12916,2421.8,2421.6,1.41763]
[1728083384216,0.10312278,2421.7,2421.6,1.41763]
[1728083384416,4.12916,2421.8,2421.6,1.41763]
[1728083384640,0.10312278,2421.7,2421.6,1.41763]
[1728083385036,4.12916,2421.8,2421.6,1.41763]
[1728083385215,0.10312278,2421.7,2421.6,1.41763]
[1728083385415,4.12916,2421.8,2421.6,1.41763]
[1728083385618,0.10312278,2421.7,2421.6,1.41763]
[1728083385929,4.12916,2421.8,2421.6,1.41763]
[1728083386260,0.10312278,2421.7,2421.6,1.41763]
[1728083386666,4.12899,2421.9,2421.6,1.41763]
[1728083386830,0.10311436,2421.7,2421.6,1.41763]
[1728083387034,4.12899,2421.9,2421.6,1.41763]
[1728083387265,0.10311436,2421.7,2421.6,1.41763]
[1728083387757,4.12899,2421.9,2421.6,1.41763]
[1728083387957,0.10314948,2421.8,2421.6,1.41763]
[1728083389762,4.129,2421.9,2421.6,1.41763]
[1728083390174,0.10125084,2421.8,2421.6,1.41763]
[1728083396293,8.25781,2422.0,2421.6,1.41763]
[1728083396462,0.10055573,2421.7,2421.6,1.41763]
[1728083396662,8.25781,2422.0,2421.6,1.41763]
[1728083396981,4.1289,2422.0,2421.6,1.41763]
[1728083397155,0.10062595,2421.9,2421.6,1.41763]
[1728083400198,0.10062595,2421.9,2421.8,1.41763]
[1728083402009,0.10062595,2421.9,2421.8,2.21013]
[1728083402157,0.10062595,2421.9,2421.8,7.83973475]
[1728083402481,4.12815,2422.4,2422.0,4.12881]
[1728083402684,4.12815,2422.4,2422.2,1.41763]
[1728083402893,4.12793,2422.6,2422.2,2.21013]
[1728083403054,8.25588,2422.6,2422.2,2.21013]
[1728083403257,0.97108053,2422.6,2422.4,1.41763]
[1728083403452,0.8231,2422.7,2422.4,1.41763]
[1728083404773,4.12755,2422.8,2422.6,1.41763]
[1728083405089,4.648522,2422.9,2422.6,1.41763]
[1728083405295,4.12775,2422.7,2422.3,1.41763]
[1728083405471,4.7053772,2422.7,2422.3,1.41763]
[1728083406002,4.75943532,2422.8,2422.5,1.41763]
[1728083406699,4.648522,2422.9,2422.5,1.41763]
[1728083406862,3.825422,2422.9,2422.7,1.41763]
[1728083407063,1.45492532,2423.1,2422.7,1.41763]
[1728083407308,4.12685,2423.2,2422.9,1.41763]
[1728083407601,4.12685,2423.2,2422.8,0.7925]
[1728083407602,0.8231,2423.3,2423.1,1.41763]
[1728083408197,0.63182532,2423.2,2423.1,1.41763]
[1728083408693,7.75859532,2423.2,2423.1,1.41763]
[1728083409105,3.63182532,2423.2,2423.1,1.41763]
[1728083409704,0.63182532,2423.2,2423.1,1.41763]
[1728083410397,4.94983,2423.3,2423.1,1.41763]
[1728083410837,6.22063253,2423.3,2423.1,1.41763]
[1728083412334,4.12677,2423.2,2423.1,1.41763]
[1728083412547,4.12762,2422.7,2422.4,0.7566]
[1728083412700,0.8101,2423.0,2422.4,1.41763]
[1728083412701,4.12789,2422.6,2422.4,1.41763]
[1728083416957,0.08777513,2422.5,2422.4,1.41763]
[1728083420565,4.12757,2422.8,2422.4,1.41763]
[1728083420862,0.08769925,2422.5,2422.3,4.1282]
[1728083421057,4.12757,2422.8,2422.3,4.1282]
[1728083421356,0.08769123,2422.7,2422.3,4.1282]
[1728083421564,0.08769123,2422.7,2422.4,4.12811]
[1728083421767,4.89902,2422.9,2422.5,0.8114]
[1728083421924,0.08771314,2422.6,2422.5,0.8114]
[1728083422269,4.89902,2422.9,2422.6,1.41763]
[1728083422569,0.7717,2423.1,2422.8,1.41763]
[1728083423419,4.89872,2423.1,2422.8,1.41763]
[1728083423859,4.12702,2423.1,2422.8,1.41763]
[1728083424385,0.7717,2423.3,2423.0,1.41763]
[1728083425683,4.12627,2423.5,2423.2,1.41763]
[1728083425843,4.12627,2423.5,2422.4,7.3]
[1728083425844,4.12621,2423.6,2423.4,1.41763]
[1728083426038,4.12592,2423.7,2423.4,1.41763]
[1728083426377,4.89755,2423.8,2423.6,1.41763]
[1728083426552,4.12592,2423.7,2423.6,1.41763]
[1728083426929,4.89755,2423.8,2423.6,1.41763]
[1728083426930,8.25175,2423.8,2423.6,1.41763]
[1728083427206,4.12585,2423.8,2423.6,1.41763]
[1728083427413,4.12592,2423.7,2423.6,1.41763]
[1728083427720,4.951097,2423.7,2423.3,2.22903]
[1728083427892,4.12628,2423.5,2423.3,2.22903]
[1728083428090,8.25196,2423.7,2423.3,2.22903]
[1728083428709,4.12613,2423.6,2423.3,2.22903]
[1728083429215,8.25195,2423.7,2423.3,2.22903]
[1728083429385,4.12592,2423.7,2423.3,2.22903]
[1728083432033,0.13415796,2423.6,2423.3,2.22903]
[1728083437505,0.13415796,2423.6,2423.5,1.41763]
[1728083437908,3.0,2423.8,2423.5,1.41763]
[1728083438149,0.13389114,2423.6,2423.5,1.41763]
[1728083438319,3.0,2423.8,2423.5,1.41763]
[1728083438320,7.12576,2423.8,2423.5,1.41763]
[1728083438519,0.13382643,2423.6,2423.5,1.41763]
[1728083438718,4.12571,2423.9,2423.6,0.7846]
[1728083439015,4.12534,2424.1,2423.7,1.41763]
[1728083439232,4.12515,2424.2,2424.0,1.41763]
[1728083439648,0.904447,2424.2,2423.6,0.7846]
[1728083439817,0.7943,2424.3,2423.5,1.41763]
[1728083439818,0.7943,2423.9,2423.5,1.41763]
[1728083440020,4.12576,2423.8,2423.5,1.41763]
[1728083440320,8.25161,2423.8,2423.5,1.41763]
[1728083440521,4.12576,2423.8,2423.5,1.41763]
[1728083442528,4.12576,2423.8,2423.7,1.41763]
[1728083442854,4.12553,2424.0,2423.7,1.41763]
[1728083443362,4.12553,2424.0,2423.8,0.7846]
[1728083443718,3.0,2424.1,2423.9,1.41763]
[1728083444129,7.1253,2424.1,2423.9,1.41763]
[1728083444715,7.1253,2424.1,2423.3,4.1265]
[1728083444716,1.20447,2424.1,2423.3,4.1265]
[1728083444922,1.17117033,2424.0,2423.4,6.20223]
[1728083445154,5.29670033,2424.0,2423.6,1.41763]
[1728083445548,4.12577,2423.8,2423.4,4.7846]
[1728083445777,4.12606,2423.7,2423.4,0.7846]
[1728083446868,0.12960919,2423.6,2423.4,0.7846]